bitfinex-derivatives/quotes_ETHF0:USTF0_20250309
["timestamp","ask_amount","ask_price","bid_price","bid_amount"]
[1741558310143,1.84045,2021.1,2020.9,2.458]
[1741558310452,0.8508,2021.1,2020.9,3.4477]
[1741558310645,1.84044,2021.1,2020.9,2.458]
[1741558311048,0.98968,2021.0,2020.9,2.458]
[1741558311246,0.8508,2021.1,2020.7,0.00743329]
[1741558311445,0.98978,2020.8,2020.7,0.00743329]
[1741558312247,3.2078,2020.9,2020.2,2.458]
[1741558312551,0.99012,2020.1,2020.0,2.458]
[1741558312755,3.2078,2020.4,2020.0,0.99017]
[1741558312956,4.0091,2020.4,2020.0,0.99017]
[1741558313252,0.99009,2020.2,2020.0,0.99017]
[1741558313555,0.99006,2020.3,2020.0,0.99760329]
[1741558314046,0.9901,2020.2,2020.0,0.00743329]
[1741558314248,4.01653329,2020.4,2020.0,0.00743329]
[1741558314451,0.99007,2020.3,2020.0,0.99759329]
[1741558314953,4.01653329,2020.4,2020.0,0.00743329]
[1741558315252,0.99006,2020.3,2020.0,0.99758329]
[1741558315849,0.80873329,2020.4,2020.0,0.00743329]
[1741558316251,0.00743329,2020.4,2020.3,0.99003]
[1741558317248,0.00743329,2020.4,2020.2,0.99003]
[1741558317449,0.00743329,2020.4,2020.1,6.2137]
[1741558317450,0.99743329,2020.4,2020.1,6.3971]
[1741558317659,0.99743329,2020.4,2020.2,0.99006]
[1741558317854,0.00743329,2020.4,2020.3,2.949]
[1741558318158,0.99741329,2020.4,2020.3,2.949]
[1741558318554,0.99012,2020.1,2020.0,0.00743329]
[1741558318851,0.99011,2020.2,2020.0,0.00743329]
[1741558319049,1.6125,2020.3,2020.0,0.00743329]
[1741558319254,4.19792,2020.1,2020.0,0.00743329]
[1741558320760,0.99027,2019.8,2019.7,2.949]
[1741558321360,0.9904,2019.6,2019.4,2.949]
[1741558321655,0.99034,2019.7,2019.4,3.93944]
[1741558321857,3.2078,2019.8,2019.3,7.00703329]
[1741558322159,0.9904,2019.6,2019.3,4.78973329]
[1741558322565,0.8539,2019.7,2019.3,3.79923329]
[1741558322859,0.99038,2019.6,2019.3,4.78970329]
[1741558323651,0.8539,2019.7,2019.3,3.79923329]
[1741558323955,0.8539,2019.7,2019.3,3.94693329]
[1741558324158,0.8539,2019.7,2019.3,2.95643329]
[1741558324563,3.2078,2019.5,2019.4,0.99047]
[1741558324762,1.84425,2019.7,2019.4,0.99047]
[1741558324960,1.84425,2019.7,2019.3,2.95643329]
[1741558325160,0.99037,2019.6,2019.4,0.99045]
[1741558325464,0.99039,2019.6,2019.4,0.99047]
[1741558325764,3.2078,2019.9,2019.3,6.16423329]
[1741558326155,3.2078,2019.9,2019.6,0.99033]
[1741558326156,4.19806,2019.9,2019.6,0.99033]
[1741558326357,4.19806,2019.9,2019.7,0.99031]
[1741558326563,0.8232,2020.1,2019.6,3.2078]
[1741558326867,4.031,2020.1,2019.6,3.7853]
[1741558327065,1.76244,2020.3,2020.2,0.99008]
[1741558327265,4.20525329,2020.4,2020.2,0.99005]
[1741558327465,3.21523329,2020.4,2020.2,0.99005]
[1741558327867,0.00743329,2020.4,2020.1,0.8363]
[1741558328067,0.00743329,2020.4,2020.3,0.99003]
[1741558328369,0.99741329,2020.4,2020.3,2.458]
[1741558328763,0.00743329,2020.4,2020.3,2.458]
[1741558328959,0.00743329,2020.4,2020.3,3.44803]
[1741558329160,0.99741329,2020.4,2020.3,2.458]
[1741558329470,0.00743329,2020.4,2020.3,3.44803]
[1741558329883,0.99741329,2020.4,2020.3,2.458]
[1741558330274,0.00743329,2020.4,2020.3,3.44803]
[1741558330761,0.00743329,2020.4,2020.1,0.8363]
[1741558330762,0.00743329,2020.4,2020.1,2.949]
[1741558330973,0.99008,2020.2,2020.1,2.949]
[1741558331166,4.19788,2020.2,2020.1,2.949]
[1741558331874,0.82,2020.3,2020.1,2.949]
[1741558332170,4.19788,2020.2,2020.1,2.949]
[1741558332480,0.82,2020.3,2020.1,2.949]
[1741558332675,0.99008,2020.2,2020.1,2.949]
[1741558333776,0.82,2020.3,2020.1,2.949]
[1741558334070,0.00743329,2020.4,2020.3,0.99003]
[1741558334268,1.6602,2021.1,2020.4,2.47495]
[1741558334473,0.9897,2021.0,2020.8,4.19755]
[1741558334673,3.2078,2021.2,2020.8,3.2078]
[1741558334868,3.2078,2021.2,2020.8,5.6658]
[1741558335379,0.98965,2021.1,2020.9,1.78439]
[1741558335575,0.99704329,2021.2,2021.0,0.98967]
[1741558335771,0.00743329,2021.2,2021.1,4.19743]
[1741558336072,3.0,2022.0,2021.3,2.47378]
[1741558336264,3.0,2022.0,2021.7,3.2078]
[1741558336265,0.98929,2021.8,2021.7,3.2078]
[1741558336464,0.98936,2021.7,2021.5,0.98942]
[1741558336670,3.98922,2022.0,2021.6,3.2078]
[1741558336874,3.0,2022.0,2021.6,3.2078]
[1741558337067,3.0,2022.0,2021.9,0.98924]
[1741558337268,3.0,2022.0,2021.9,3.44624]
[1741558337667,3.98919,2022.0,2021.9,2.457]
[1741558338270,6.2078,2022.0,2021.7,2.949]
[1741558338468,0.98929,2021.8,2021.7,2.949]
[1741558339074,0.98939,2021.6,2021.5,2.457]
[1741558339268,0.98939,2021.6,2021.0,0.4952]
[1741558339269,0.98967,2021.1,2021.0,2.457]
[1741558339465,0.98968,2021.0,2020.9,2.949]
[1741558339681,3.2078,2021.4,2020.9,3.93873]
[1741558339883,0.98968,2021.0,2020.9,2.949]
[1741558340083,0.98973,2020.9,2020.7,2.457]
[1741558340371,0.98973,2020.9,2020.6,6.1568]
[1741558340783,4.0,2020.9,2020.3,5.6648]
[1741558340973,0.98998,2020.4,2020.3,5.6648]
[1741558341371,3.2078,2020.7,2020.3,5.6648]
[1741558341882,0.98991,2020.6,2020.3,6.65483]
[1741558342083,0.98991,2020.6,2020.3,6.66226329]
[1741558342282,4.20509329,2020.7,2020.4,0.98997]
[1741558342579,0.98998,2020.4,2020.3,5.67223329]
[1741558342776,0.98998,2020.4,2020.3,0.00743329]
[1741558347880,3.2078,2020.6,2020.3,0.00743329]
[1741558348082,0.00743329,2020.7,2020.5,3.2078]
[1741558348281,0.00743329,2020.7,2020.6,0.98988]
[1741558348478,0.786,2021.2,2020.6,2.949]
[1741558348678,3.2078,2021.1,2020.6,5.406]
[1741558348886,0.98983,2020.7,2020.6,2.949]
[1741558349084,0.98993,2020.5,2020.4,3.7758]
[1741558349386,0.98989,2020.6,2020.4,4.76578]
[1741558349588,0.98993,2020.5,2020.4,3.7758]
[1741558349886,0.98993,2020.5,2020.4,2.949]
[1741558350079,3.2078,2020.7,2020.3,0.00743329]
[1741558350279,5.02928,2020.4,2020.3,0.00743329]
[1741558350577,2.457,2020.7,2020.3,0.00743329]
[1741558350985,0.98998,2020.4,2020.3,0.00743329]
[1741558351383,4.0393,2020.8,2020.4,0.98998]
[1741558351586,0.98988,2020.6,2020.4,0.98996]
[1741558351887,0.98988,2020.6,2020.4,1.82246]
[1741558352184,0.8315,2021.2,2020.6,2.47471]
[1741558352389,3.2078,2021.4,2020.9,3.2078]
[1741558352685,0.98968,2021.0,2020.9,2.457]
[1741558353283,4.0151,2021.1,2020.7,2.949]
[1741558353584,0.98988,2020.6,2020.5,2.457]
[1741558354186,0.98988,2020.6,2020.3,0.00743329]
[1741558354187,0.98998,2020.4,2020.3,0.00743329]
[1741558355380,0.98994,2020.5,2020.3,0.99744329]
[1741558355985,0.98998,2020.4,2020.3,0.00743329]
[1741558357081,3.2078,2020.7,2020.3,0.00743329]
[1741558357286,0.98987,2020.7,2020.3,0.00743329]
[1741558357488,1.7819,2021.2,2020.6,3.2078]
[1741558357683,0.98968,2021.0,2020.9,3.2078]
[1741558357884,0.98974,2020.9,2020.7,3.7697]
[1741558358188,0.98971,2021.0,2020.8,0.98974]
[1741558358388,0.7923,2021.2,2020.8,0.98974]
[1741558358593,0.9897,2021.0,2020.7,3.7697]
[1741558358986,0.9897,2021.0,2020.8,0.98975]
[1741558359183,0.98972,2021.0,2020.8,0.98975]
[1741558359489,0.98965,2021.1,2020.7,6.24427]
[1741558359684,0.98965,2021.1,2021.0,0.98968]
[1741558359883,2.47385,2021.3,2020.8,3.44677]
[1741558360291,2.47385,2021.3,2020.8,2.457]
[1741558360487,0.98973,2020.9,2020.8,2.457]
[1741558360692,0.98978,2020.8,2020.7,2.949]
[1741558360893,3.2078,2021.1,2020.7,2.949]
[1741558361087,5.68146,2021.5,2020.7,2.949]
[1741558361280,0.98978,2020.8,2020.7,2.949]
[1741558363787,0.98998,2020.4,2020.3,0.00743329]
[1741558364993,0.99035,2019.7,2019.4,6.39645]
[1741558365188,0.99035,2019.7,2019.5,0.99041]
[1741558365791,0.99042,2019.5,2019.4,2.949]
[1741558365994,0.99042,2019.5,2019.4,2.95643329]
[1741558366489,3.2078,2019.7,2019.4,2.95643329]
[1741558366692,0.99034,2019.7,2019.4,3.94686329]
[1741558366898,0.99042,2019.5,2019.4,2.95643329]
[1741558368095,0.00743329,2019.8,2019.4,2.95643329]
[1741558368487,0.99042,2019.5,2019.4,2.95643329]
[1741558370098,0.99042,2019.5,2019.4,0.00743329]
[1741558370295,0.7952,2019.6,2019.0,2.949]
[1741558370495,0.99058,2019.2,2019.0,3.93965]
[1741558370693,0.99058,2019.2,2019.0,2.949]
[1741558370694,0.99061,2019.2,2019.0,2.949]
[1741558370894,0.99061,2019.1,2019.0,2.949]
[1741558371198,2.47667,2019.0,2018.4,6.1568]
[1741558371396,0.99091,2018.5,2018.4,2.949]
[1741558371697,0.99101,2018.3,2018.2,2.949]
[1741558372001,0.99101,2018.3,2018.2,0.00743329]
[1741558372199,4.0,2018.3,2017.6,2.949]
[1741558372395,5.6648,2018.5,2017.6,2.949]
[1741558372396,0.99127,2017.8,2017.6,2.949]
[1741558372597,3.2078,2018.1,2017.4,6.1568]
[1741558372794,3.2078,2018.1,2017.8,0.99122]
[1741558373098,3.2078,2018.1,2017.4,6.1568]
[1741558373299,0.99131,2017.7,2017.4,6.1568]
[1741558373496,0.99131,2017.7,2017.5,0.00743329]
[1741558373497,0.9913,2017.7,2017.5,0.00743329]
[1741558373795,0.99132,2017.7,2017.5,0.00743329]
[1741558373994,0.99135,2017.6,2017.5,0.00743329]
[1741558374601,4.0,2017.6,2016.8,3.2078]
[1741558374796,3.2078,2017.2,2016.8,3.2078]
[1741558374997,3.2078,2017.5,2016.8,3.2078]
[1741558375199,3.2078,2017.5,2017.4,0.99145]
[1741558375402,3.2078,2017.5,2017.2,3.2078]
[1741558375601,3.2078,2017.5,2017.3,0.9915]
[1741558375801,0.00743329,2017.6,2017.3,2.949]
[1741558376195,2.459,2017.5,2017.2,3.2078]
[1741558376399,0.99155,2017.2,2017.1,0.00743329]
[1741558377299,4.0,2017.2,2016.4,3.2078]
[1741558377498,3.2078,2016.8,2016.4,3.2078]
[1741558377698,3.2078,2016.8,2016.1,6.1568]
[1741558378205,4.19955,2016.8,2016.4,4.1997]
[1741558378397,3.2078,2016.8,2016.2,0.00743329]
[1741558379099,3.2078,2016.8,2015.3,6.1568]
[1741558379100,3.2078,2016.4,2015.3,6.1568]
[1741558379302,0.99228,2015.8,2015.3,6.1568]
[1741558379507,0.99231,2015.7,2015.3,7.14926]
[1741558379806,0.99229,2015.7,2015.3,7.14926]
[1741558380007,3.2078,2016.0,2015.3,6.1568]
[1741558380205,0.99231,2015.7,2015.3,7.14926]
[1741558380405,0.00743329,2015.9,2015.6,3.2078]
[1741558380705,0.00743329,2015.9,2015.8,0.99221]
[1741558380906,3.2078,2016.6,2015.8,2.949]
[1741558381207,3.2078,2016.6,2016.2,0.99201]
[1741558381208,0.99185,2016.6,2016.2,0.99201]
[1741558381407,3.2078,2016.6,2016.0,3.2078]
[1741558381600,3.2078,2016.6,2015.9,5.448]
[1741558381802,3.2078,2016.3,2015.6,2.949]
[1741558382108,3.2078,2016.3,2015.7,3.2078]
[1741558382304,0.00743329,2016.5,2016.3,0.99197]
[1741558382607,0.00743329,2016.5,2016.4,0.99194]
[1741558382796,0.00743329,2016.5,2016.4,3.94094]
[1741558383106,0.99202,2016.3,2016.0,2.949]
[1741558383405,0.00743329,2016.5,2016.1,3.2078]
[1741558383602,0.99934329,2016.5,2016.1,4.19986]
[1741558383798,0.00743329,2016.5,2016.1,3.2078]
[1741558384101,0.00743329,2016.5,2016.2,9.3027316]
[1741558384299,0.00743329,2016.5,2016.2,2.949]
[1741558384497,0.00743329,2016.5,2016.4,4.19974]
[1741558384907,3.2078,2016.9,2016.5,0.99185]
[1741558385110,4.19952,2016.9,2016.5,0.99185]
[1741558385405,0.99182,2016.7,2016.4,3.7038]
[1741558385710,0.99183,2016.7,2016.4,4.19972]
[1741558386004,3.2078,2016.9,2016.4,4.19972]
[1741558386005,0.00743329,2016.8,2016.5,2.949]
[1741558386196,0.00743329,2016.8,2016.7,4.19959]
[1741558386397,0.00743329,2016.8,2016.7,7.14859]
[1741558386597,0.99165,2017.0,2016.7,7.14859]
[1741558386802,0.99162,2017.1,2016.7,7.14859]
[1741558387201,3.2078,2017.2,2016.7,6.1568]
[1741558387407,3.2078,2017.5,2017.0,3.2078]
[1741558387607,2.985,2018.2,2017.3,3.2078]
[1741558387608,3.2078,2017.9,2017.3,3.2078]
[1741558387905,0.99151,2017.3,2017.1,2.949]
[1741558388212,0.00743329,2017.5,2017.1,2.949]
[1741558388403,0.00743329,2017.5,2017.1,6.1568]
[1741558388800,0.00743329,2017.5,2017.3,0.99146]
[1741558389001,0.99152,2017.3,2017.1,6.1568]
[1741558389207,0.00743329,2017.5,2017.1,6.1568]
[1741558389403,4.19935,2017.2,2017.1,2.949]
[1741558390209,0.99155,2017.2,2017.1,2.949]
[1741558390410,3.21523329,2017.5,2017.1,2.949]
[1741558391010,4.19935,2017.2,2017.1,2.949]
[1741558391712,3.2078,2017.2,2017.1,2.949]
[1741558392112,3.21523329,2017.5,2017.1,2.949]
[1741558392413,0.99145,2017.4,2017.1,2.949]
[1741558392611,3.21523329,2017.5,2017.1,2.949]
[1741558392810,0.00743329,2017.5,2017.2,2.949]
[1741558393613,0.00743329,2017.5,2017.3,0.99148]
[1741558393812,0.99883329,2017.5,2017.3,2.949]
[1741558394010,0.99885329,2017.5,2017.3,2.949]
[1741558394317,0.99883329,2017.5,2017.3,2.949]
[1741558394614,0.00743329,2017.5,2017.3,2.949]
[1741558394815,0.00743329,2017.5,2017.3,3.94047]
[1741558395205,0.00743329,2017.5,2017.4,4.19925]
[1741558396210,0.00743329,2017.5,2017.4,3.2078]
[1741558396411,0.00743329,2017.5,2017.4,4.19925]
[1741558396615,0.00743329,2017.5,2017.4,2.512]
[1741558397316,0.00743329,2017.5,2017.4,3.50345]
[1741558397614,0.00743329,2017.5,2017.4,0.99145]
[1741558398316,0.00743329,2017.5,2017.3,2.949]
[1741558398514,0.00743329,2017.5,2017.4,0.99145]
[1741558398920,0.00743329,2017.5,2017.3,2.949]
[1741558399112,0.00743329,2017.5,2017.4,0.99145]
[1741558399423,0.99885329,2017.5,2017.3,3.94047]
[1741558399616,0.00743329,2017.5,2017.3,2.949]
[1741558400113,0.99145,2017.4,2017.3,2.949]
[1741558400414,0.00743329,2017.5,2017.1,3.2078]
[1741558400415,0.99155,2017.2,2017.1,3.2078]
[1741558400614,0.00743329,2017.5,2017.0,0.00743329]
[1741558400615,0.9916,2017.1,2017.0,0.00743329]
[1741558404724,1.81845329,2017.5,2017.0,0.00743329]
[1741558404915,0.00743329,2017.5,2017.0,2.48651329]
[1741558405112,0.99887329,2017.5,2017.0,0.76553329]
[1741558405628,0.99887329,2017.5,2017.3,0.99149]
[1741558406020,0.99153,2017.3,2017.0,3.71453329]
[1741558406219,0.99151,2017.3,2017.1,0.99156]
[1741558406519,0.99149,2017.4,2017.2,0.99155]
[1741558406729,0.99145,2017.4,2017.3,0.9915]
[1741558406925,0.99145,2017.4,2017.2,0.99152]
[1741558407319,0.99885329,2017.5,2017.0,2.95643329]
[1741558407822,0.99146,2017.4,2017.2,0.99151]
[1741558408027,0.99146,2017.4,2017.0,2.95643329]
[1741558408229,0.00743329,2017.5,2017.0,2.95643329]
[1741558408423,0.99885329,2017.5,2017.3,0.99147]
[1741558408728,0.00743329,2017.5,2017.3,0.99148]
[1741558408928,0.99145,2017.4,2017.3,0.99148]
[1741558409322,0.99886329,2017.5,2017.3,0.99148]
[1741558409521,0.00743329,2017.5,2017.3,0.99148]
[1741558409826,0.99884329,2017.5,2017.3,0.99146]
[1741558410025,0.00743329,2017.5,2017.0,5.43549329]
[1741558410225,0.99885329,2017.5,2017.3,0.99146]
[1741558410429,0.00743329,2017.5,2017.4,0.99145]
[1741558411328,0.99202,2016.3,2016.1,3.94107]
[1741558411521,0.99208,2016.2,2015.9,0.99216]
[1741558411724,3.2078,2016.4,2015.8,2.949]
[1741558412132,3.2078,2016.4,2016.3,0.99199]
[1741558412432,3.2078,2016.8,2016.3,2.47998]
[1741558412731,0.00743329,2016.6,2016.5,0.99189]
[1741558413131,0.00743329,2016.6,2016.2,3.7308]
[1741558413431,0.00743329,2016.6,2016.4,3.2078]
[1741558413630,0.99929329,2016.6,2016.4,4.19973]
[1741558413828,0.99929329,2016.6,2016.5,0.99189]
[1741558413829,0.00743329,2016.6,2016.5,0.99189]
[1741558414224,0.00743329,2016.6,2016.2,3.7308]
[1741558414225,0.00743329,2016.6,2016.3,2.558]
[1741558414429,0.00743329,2016.6,2016.4,0.99193]
[1741558414430,0.99929329,2016.6,2016.4,0.99193]
[1741558414626,0.00743329,2016.6,2016.4,0.99193]
[1741558414831,0.00743329,2016.6,2016.5,0.99189]
[1741558415127,0.99157,2017.2,2016.9,0.99165]
[1741558415326,0.99168,2017.0,2016.7,3.55176]
[1741558415522,0.9917,2016.9,2016.7,3.55176]
[1741558415721,0.99174,2016.8,2016.6,2.949]
[1741558415928,0.99179,2016.7,2016.6,2.949]
[1741558416128,4.19958,2016.8,2016.5,0.99186]
[1741558416325,0.9918,2016.7,2016.5,0.99186]
[1741558416825,3.2078,2016.8,2016.5,0.99189]
[1741558417024,3.2078,2016.8,2016.4,2.558]
[1741558417025,0.99183,2016.7,2016.4,2.558]
[1741558417227,3.2078,2016.8,2016.4,2.558]
[1741558417530,0.99182,2016.7,2016.5,0.99187]
[1741558417931,3.2078,2016.8,2016.7,0.99179]
[1741558418129,0.00743329,2016.9,2016.5,3.2078]
[1741558418326,0.99178,2016.8,2016.6,0.99183]
[1741558418526,0.99178,2016.8,2016.6,0.99181]
[1741558418527,0.99176,2016.8,2016.6,0.99181]
[1741558419232,0.00743329,2016.9,2016.8,0.99174]
[1741558419428,0.00743329,2016.9,2016.8,4.19954]
[1741558419836,0.00743329,2016.9,2016.8,6.75554]
[1741558420035,0.99913329,2016.9,2016.8,5.7638]
[1741558420332,0.99913329,2016.9,2016.8,2.556]
[1741558421228,0.00743329,2016.9,2016.8,3.54774]
[1741558421435,0.99913329,2016.9,2016.8,2.556]
[1741558421929,0.00743329,2016.9,2016.8,0.99174]
[1741558422139,0.99179,2016.7,2016.6,2.949]
[1741558422329,4.19959,2016.7,2016.6,2.949]
[1741558422530,4.19959,2016.7,2016.6,3.94084]
[1741558422826,1.5382,2016.8,2016.6,2.949]
[1741558423028,4.19959,2016.7,2016.6,2.949]
[1741558425434,0.99188,2016.6,2016.4,0.99194]
[1741558426233,3.2078,2016.7,2016.2,0.7818]
[1741558426542,0.99199,2016.3,2016.2,0.7818]
[1741558426835,3.2078,2016.4,2016.3,0.99199]
[1741558427738,3.9431,2016.8,2016.7,0.99179]
[1741558428031,0.00743329,2016.9,2016.8,0.99174]
[1741558430136,0.00743329,2016.9,2016.6,3.2078]
[1741558430137,0.00743329,2016.9,2016.6,4.19961]
[1741558430338,0.00743329,2016.9,2016.7,0.99179]
[1741558430533,0.00743329,2016.9,2016.8,0.99174]
[1741558430728,0.00743329,2016.9,2016.6,4.19961]
[1741558431040,0.00743329,2016.9,2016.8,0.99174]
[1741558431739,0.99915329,2016.9,2016.7,0.99176]
[1741558432041,0.99915329,2016.9,2016.8,0.99174]
[1741558432340,0.00743329,2016.9,2016.8,0.99174]
[1741558432634,0.99913329,2016.9,2016.8,0.99174]
[1741558433238,0.00743329,2016.9,2016.8,0.99174]
[1741558433541,0.00743329,2016.9,2016.8,3.53174]
[1741558439745,3.2078,2017.4,2016.8,5.489]
[1741558440051,0.9915,2017.3,2017.2,0.99152]
[1741558440356,0.9915,2017.3,2017.2,0.99155]
[1741558440545,4.19928,2017.4,2017.2,0.99155]
[1741558440852,0.9915,2017.3,2017.2,0.99155]
[1741558441144,3.2078,2017.4,2016.9,2.949]
[1741558441353,0.99158,2017.2,2017.0,0.9916]
[1741558441543,3.2078,2017.4,2017.0,0.9916]
[1741558441847,3.2078,2017.4,2017.3,0.9915]
[1741558442042,0.99151,2017.3,2017.0,3.2078]
[1741558442247,0.99151,2017.3,2017.1,0.00743329]
[1741558442446,0.9915,2017.3,2017.2,3.50453]
[1741558442651,0.00743329,2017.5,2017.2,2.513]
[1741558443051,0.99149,2017.4,2017.2,3.50453]
[1741558443347,0.99885329,2017.5,2017.4,0.99145]
[1741558443646,3.29e-06,2017.5,2017.4,0.99145]
[1741558443852,0.7568,2018.2,2017.7,2.47826]
[1741558444149,3.2078,2018.5,2018.4,0.99096]
[1741558444343,3.2078,2018.5,2018.1,3.2078]
[1741558444344,4.19875,2018.5,2018.2,0.99102]
[1741558444549,0.99096,2018.4,2018.2,0.99102]
[1741558444845,4.19875,2018.5,2018.0,2.515]
[1741558445047,0.99101,2018.3,2018.1,0.00743329]
[1741558445252,3.21523329,2018.5,2018.1,0.00743329]
[1741558445448,4.19886,2018.2,2018.1,0.00743329]
[1741558446841,3.2078,2018.2,2018.1,0.99854329]
[1741558447042,3.21523329,2018.5,2018.1,0.00743329]
[1741558447251,0.99102,2018.3,2018.1,0.99850329]
[1741558447454,0.99099,2018.4,2018.2,0.99106]
[1741558447754,0.99102,2018.3,2018.1,0.99851329]
[1741558448551,3.21523329,2018.5,2018.1,0.00743329]
[1741558448751,4.19886,2018.2,2018.1,0.00743329]
[1741558448950,3.2078,2018.2,2017.5,5.7148]
[1741558449146,0.99135,2017.6,2017.5,5.7148]
[1741558450246,0.99135,2017.6,2017.5,2.507]
[1741558450452,3.2078,2017.8,2017.5,2.507]
[1741558450651,4.19905,2017.8,2017.6,0.99131]
[1741558450851,4.19907,2017.8,2017.6,0.99133]
[1741558451149,4.19909,2017.8,2017.5,0.99136]
[1741558451552,4.19909,2017.8,2017.4,0.99143]
[1741558451553,3.2078,2017.8,2017.4,0.99143]
[1741558451750,0.99137,2017.6,2017.4,0.99143]
[1741558451951,0.99132,2017.7,2017.5,0.99136]
[1741558453057,0.99132,2017.7,2017.6,0.99135]
[1741558453259,0.99132,2017.7,2017.3,0.00743329]
[1741558453260,0.99132,2017.7,2017.5,0.99137]
[1741558453554,0.99132,2017.7,2017.3,0.00743329]
[1741558453756,4.90978,2017.8,2017.3,0.00743329]
[1741558454147,0.99136,2017.6,2017.3,0.00743329]
[1741558454344,0.99133,2017.7,2017.5,0.9914]
[1741558454755,3.9185,2017.8,2017.5,0.9914]
[1741558454954,0.99135,2017.6,2017.4,0.99141]
[1741558455154,0.99135,2017.6,2017.5,0.9914]
[1741558455360,0.99132,2017.7,2017.5,0.9914]
[1741558455659,0.99132,2017.7,2017.6,0.99135]
[1741558455953,0.7708,2017.9,2017.6,5.6938]
[1741558456154,0.99116,2018.0,2017.9,0.9912]
[1741558456353,0.99116,2018.0,2017.6,8.6428]
[1741558456653,3.9263,2018.4,2017.7,5.92326]
[1741558456858,0.00743329,2018.5,2018.4,0.99096]
[1741558457054,1.7368,2018.6,2018.4,4.19874]
[1741558457260,1.73678,2018.6,2018.5,0.99091]
[1741558457450,0.7459,2018.6,2018.5,0.99091]
[1741558457651,4.91703,2018.9,2018.4,2.4774]
[1741558457855,4.91703,2018.9,2018.3,3.2078]
[1741558457856,0.99079,2018.8,2018.6,0.99083]
[1741558459055,0.99091,2018.5,2018.4,0.00743329]
[1741558459252,4.19871,2018.5,2018.4,0.99839329]
[1741558459457,3.2078,2018.5,2018.4,0.99839329]
[1741558459655,0.99079,2018.8,2018.4,0.00743329]
[1741558459851,3.93373329,2018.9,2018.7,0.99079]
[1741558460048,0.99082,2018.7,2018.5,0.99091]
[1741558460262,0.99078,2018.8,2018.4,0.00743329]
[1741558460461,3.93373329,2018.9,2018.4,0.00743329]
[1741558460756,3.2078,2020.1,2018.8,3.2078]
[1741558461060,23.04427283,2019.9,2019.4,3.2078]
[1741558461264,0.9903,2019.8,2019.5,3.50339]
[1741558461464,23.04427283,2019.9,2019.5,2.513]
[1741558461660,24.03451283,2019.9,2019.7,0.9903]
[1741558461859,23.04427283,2019.9,2019.5,2.513]
[1741558462059,23.04427283,2019.9,2019.7,0.99028]
[1741558462266,0.7412,2019.9,2019.7,0.99028]
[1741558462564,0.7412,2019.9,2019.8,0.99027]
[1741558462970,1.73142,2019.9,2019.7,0.9903]
[1741558463171,0.7412,2019.9,2019.6,0.00743329]
[1741558463474,4.19807,2019.8,2019.7,2.505]
[1741558463671,0.99032,2019.7,2019.6,2.51243329]
[1741558464284,3.2078,2019.8,2019.4,2.949]
[1741558464766,4.19822,2019.5,2019.4,2.949]
[1741558464967,3.2078,2019.5,2019.4,2.949]
[1741558465167,3.2078,2019.5,2019.4,0.99047]
[1741558465476,4.19824,2019.5,2019.3,3.49751]
[1741558465675,4.19825,2019.5,2019.3,3.49748]
[1741558465975,0.99047,2019.4,2019.3,2.507]
[1741558466174,0.99052,2019.3,2019.2,0.00743329]
[1741558466470,0.99052,2019.3,2018.6,2.949]
[1741558466471,0.7764,2019.3,2018.6,2.949]
[1741558466680,0.99086,2018.6,2018.5,2.949]
[1741558466872,0.99093,2018.5,2018.3,2.949]
[1741558467079,0.99092,2018.5,2018.3,2.949]
[1741558467371,3.2078,2018.7,2018.3,2.949]
[1741558467573,4.19876,2018.4,2018.3,2.949]
[1741558467871,3.2078,2018.4,2018.3,2.949]
[1741558468074,4.19876,2018.4,2018.3,2.949]
[1741558468768,3.2078,2018.4,2018.2,0.00743329]
[1741558468975,0.99101,2018.3,2018.2,0.00743329]
[1741558469371,3.2078,2018.4,2018.2,0.99849329]
[1741558469572,3.2078,2018.4,2018.2,0.00743329]
[1741558469776,3.29e-06,2018.6,2018.5,0.99091]
[1741558469965,3.2078,2019.4,2018.5,9.1408]
[1741558470272,1.4211,2019.9,2019.8,0.99027]
[1741558470472,3.2078,2020.4,2019.7,2.531]
[1741558470668,22.237,2021.1,2020.0,3.2078]
[1741558470669,0.6989,2020.6,2020.0,3.2078]
[1741558470875,0.6989,2020.6,2020.1,2.534]
[1741558471172,0.99739329,2020.5,2020.1,2.54143329]
[1741558471369,0.00743329,2020.5,2020.1,2.54143329]
[1741558471771,0.00743329,2020.5,2020.1,3.53153329]
[1741558472066,4.19784,2020.3,2020.1,2.54143329]
[1741558472274,3.2078,2020.3,2020.1,2.54143329]
[1741558472471,3.2078,2020.3,2020.1,3.53155329]
[1741558472671,3.2078,2020.3,2020.1,2.54143329]
[1741558472873,4.19784,2020.3,2020.1,2.54143329]
[1741558473172,3.2078,2020.3,2020.1,3.53153329]
[1741558473374,3.2078,2020.3,2020.1,2.54143329]
[1741558473777,0.99008,2020.2,2020.1,0.00743329]
[1741558474377,3.2078,2020.4,2020.1,0.00743329]
[1741558474677,0.00743329,2020.5,2020.4,0.98998]
[1741558474880,3.2078,2020.7,2020.6,0.98988]
[1741558475069,3.2078,2020.7,2020.2,5.7378]
[1741558475266,4.19765,2020.7,2020.2,5.7378]
[1741558475473,3.2078,2020.7,2020.4,0.98995]
[1741558475678,4.19763,2020.7,2020.2,5.7378]
[1741558475875,3.2078,2020.7,2020.6,0.98988]
[1741558476068,3.2078,2020.7,2020.6,2.525]
[1741558476268,4.19763,2020.7,2020.6,2.525]
[1741558476976,3.2078,2020.7,2020.6,2.525]
[1741558477275,4.19763,2020.7,2020.6,2.525]
[1741558477480,3.9136,2021.7,2020.6,12.458]